Cogmind - Beta 16 @@@ ROGUE MODE // 2025.10.31 @ 19:24:18 Player: Uranium-235 Result: Destroyed by Y-45 Defender with Heavy Assault Rifle Performance ------------- Evolutions (1) 500 Regions Visited (2) 400 Robots Destroyed (23) 115 Value Destroyed (448) 448 Prototype IDs (0) 0 Alien Tech Used (0) 0 Bonus (0) 0 TOTAL SCORE: 1463 Bonus ------- None Cogmind --------- Core Integrity 0/400 Matter 291/300 Energy 78/100 System Corruption 1% Temperature Cool (17) Movement Core (250) Ox4 Location -9/Materials Parts ------- > --- POWER (1) -------- (None) > --- PROPULSION (3) --- (None) > --- UTILITY (3) ------ Medium Storage Unit > --- WEAPON (2) ------- Beam Cannon > --- INVENTORY (10) --- Light Ion Engine Light Ion Engine Aluminum Leg Improved Heat Sink Large Storage Unit Peak State ------------ > --- POWER ------------ Light Nuclear Core > --- PROPULSION ------- Hover Unit Hover Unit > --- UTILITY ---------- Medium Storage Unit Improved Terrain Scanner > --- WEAPON ----------- Hammer > --- INVENTORY -------- Light Ion Engine Light Ion Engine Aluminum Leg Hover Unit Hover Unit Improved Heat Sink Large Storage Unit Beam Cannon Assault Rifle Light Cannon [Rating: 11] Favorites ----------- Power Ion Engine Engine Ion Engine Power Core Light Nuclear Core Propulsion Aluminum Leg Treads Light Treads Leg Aluminum Leg Hover Unit Hover Unit Utility Improved Terrain Scanner Device Improved Terrain Scanner Storage Medium Storage Unit Weapon Beam Cannon Energy Gun Medium Laser Energy Cannon Beam Cannon Ballistic Gun Light Assault Rifle Ballistic Cannon Light Cannon Impact Weapon Hammer Build | -11 -10 -9 ------- Run | Yrd Mat Mat Slots Evolved 2 | . . 2 Power . | . . . Propulsion 1 | . . 1 Utility 1 | . . 1 Weapon . | . . . Parts Attached 25 | 7 15 3 Power 4 | 1 3 . Engine 3 | 1 2 . Core 1 | . 1 . Reactor . | . . . Propulsion 9 | 2 7 . Treads 2 | . 2 . Leg 3 | 2 1 . Wheel . | . . . Hover 4 | . 4 . Flight . | . . . Utility 5 | 2 3 . Device 2 | 1 1 . Storage 3 | 1 2 . Processor . | . . . Hackware . | . . . Protection . | . . . Artifact . | . . . Weapon 7 | 2 2 3 Energy Gun 1 | 1 . . Energy Cannon 2 | . 1 1 Ballistic Gun 2 | 1 . 1 Ballistic Cannon 1 | . . 1 Launcher . | . . . Special Weapon . | . . . Impact Weapon 1 | . 1 . Slashing Weapon . | . . . Piercing Weapon . | . . . Special Melee Weapon . | . . . Unidentified Prototypes . | . . . Parts Lost 13 | . 6 7 Power 3 | . 2 1 Propulsion 5 | . 3 2 Utility 2 | . 1 1 Weapon 3 | . . 3 Highest Loss Streak 7 | . 2 7 To Critical Strikes . | . . . Average Backups 8 | 5 9 7 Power 1 | . 1 2 Propulsion 3 | 3 3 1 Utility 1 | . 1 2 Weapon 2 | . 2 2 Tool/Special . | . . . Unused Backups 12 | . 8 4 Power 2 | . . 2 Propulsion 6 | . 5 1 Utility 2 | . 1 1 Weapon 2 | . 2 . Tool/Special . | . . . Average Slot Usage (%) 89 | . 93 38 Engine 11 | . 12 . Core 1 | . 1 3 Treads 7 | . 8 . Leg 10 | . 11 . Hover 7 | . 7 7 Device 11 | . 11 7 Storage 13 | . 14 11 Energy Cannon 9 | . 9 . Ballistic Gun 5 | . 5 . Impact Weapon 8 | . 8 7 Peak Build Rating 11 | 9 11 11 Average Rating 8 | 6 8 6 On Entrance 6 | . 9 11 Avg Prop Armor Cover (%) . | . . . Naked Turns . | . . . Heaviest Build 31 | 14 31 18 Greatest Support 40 | 20 40 12 Greatest Overweight (x) 4 | 4 4 4 Average Overweight (x) . | . . 2 Largest Inventory Capacity 15 | 8 15 10 Average Capacity 10 | 7 10 10 Most Carried 12 | 8 12 8 Average Carried 8 | 5 9 7 Final Capacity 10 | 8 10 10 Final Carried 8 | 8 8 5 Class Distribution -------------------- 100% | Mutant Dominant Class ---------------- Mutant | -10/Materials Mutant | -9/Materials Resources | -11 -10 -9 ----------- Run | Yrd Mat Mat Matter Collected 493 | 238 214 41 Remotely . | . . . Salvage Created 701 | 40 620 41 Parts 49 | 8 39 2 Haulers Intercepted 2 | . 2 . Recyclers Shooed 4 | 1 3 . Parts Field Recycled . | . . . Retrieved Matter . | . . . Parts Self-Destructed . | . . . Prevented . | . . . Parts Restored . | . . . Kills | -11 -10 -9 ------- Run | Yrd Mat Mat Combat Hostiles Destroyed 17 | . 16 1 Melee 5 | . 5 . Guns 1 | . 1 . Cannons 9 | . 8 1 Classes Destroyed 6 | 1 5 . Builder 1 | . 1 . Tunneler 2 | 2 . . Hauler 2 | . 2 . Recycler 1 | . 1 . Swarmer 8 | . 8 . Grunt 9 | . 8 1 Best Kill Streak 5 | 1 5 1 Combat Bots Only 5 | . 5 1 Max Kills in Single Turn 1 | 1 1 1 Gunslinging . | . . . Exploded . | . . . Melee 1 | . 1 . Uniques/NPCs Destroyed . | . . . Combat | -11 -10 -9 -------- Run | Yrd Mat Mat Hostile Shots Fired 196 | . 125 71 Missed 34 | . 20 14 Hits 162 | . 105 57 Melee 8 | . . 8 Projectile 154 | . 105 49 Critical Strikes 5 | . 1 4 Damage Taken 1919 | . 973 946 Core 575 | . 172 403 Absorbed by Shields . | . . . Core Remaining (%) 65 | 100 31 . Volleys Fired 42 | 6 28 8 Largest 2 | 2 2 1 Hottest 80 | 70 80 60 Shots Fired 76 | 12 56 8 Gun 43 | 12 28 3 Cannon 33 | . 28 5 Launcher . | . . . Special . | . . . Kinetic 41 | 6 28 7 Thermal 35 | 6 28 1 Explosive . | . . . Electromagnetic . | . . . Robot Hit Streak 12 | 2 12 5 Robot Miss Streak 3 | 2 3 1 Penetration Max . | . . . Secondary Targets . | . . . Shots Hit Robots 63 | 5 50 8 Core Hits 24 | 3 20 1 Critical Kills . | . . . Critical Parts Destroyed 4 | . 4 . Critical Strikes 6 | 2 4 . Burn 2 | 2 . . Smash 4 | . 4 . Melee Attacks 39 | . 37 2 Impact 39 | . 37 2 Slashing . | . . . Piercing . | . . . Sneak Attacks 2 | . 2 . Combat Hostiles . | . . . Follow-up Attacks . | . . . Damage Inflicted 1121 | 60 943 118 Guns 197 | 60 102 35 Cannons 404 | . 334 70 Explosions . | . . . Melee 520 | . 507 13 Ramming . | . . . Kinetic 210 | 21 102 87 Thermal 391 | 39 334 18 Explosive . | . . . Electromagnetic . | . . . Impact 520 | . 507 13 Slashing . | . . . Piercing . | . . . Highest Corruption 1 | . . 1 Average Corruption 1 | . . 1 Corruption Purged . | . . . Corruption Blocked . | . . . Overload Shots . | . . . Overflow Damage 182 | . 182 . Projectiles . | . . . Explosions . | . . . Melee 182 | . 182 . Knockbacks 4 | . 4 . Impact 4 | . 4 . Kinetic . | . . . Secondary . | . . . Self-Inflicted Damage . | . . . Shots . | . . . Rammed . | . . . Targets Rammed . | . . . Kicked . | . . . Crushed . | . . . Highest Temperature 178 | 60 178 11 Average Temperature 70 | 26 82 7 Received Heat Transfer 486 | . 237 249 Siege Activations . | . . . Martial Activations . | . . . Shielding Activations . | . . . Robots Disrupted . | . . . Combat Hostiles . | . . . Robots Corrupted 3 | . 3 . Combat Hostiles 2 | . 2 . Parts Fried 6 | . 6 . Impact Corruptions 13 | . 13 . Robots Melted . | . . . Combat Hostiles . | . . . Parts Melted 2 | . 2 . Heat Transferred 999 | 259 703 37 Parts Sabotaged . | . . . Parts Stolen . | . . . Parts Stripped . | . . . Power Chain Reactions . | . . . Alert | -11 -10 -9 ------- Run | Yrd Mat Mat Maximum Alert Level . | . . . Low Security (%) 100 | 100 100 100 Level 1 . | . . . Level 2 . | . . . Level 3 . | . . . Level 4 . | . . . Level 5 . | . . . High Security . | . . . Max Security . | . . . Peak Influence 132 | 5 132 41 Initial 41 | . . 41 Average 61 | 1 71 14 Influence Increases 533 | 10 503 20 Destroy 0b10 Robot/C 340 | . 320 20 Destroy 0b10 Robot/NC 30 | 10 20 . Destroy Leader 54 | . 54 . Successful Hack 19 | . 19 . Disable Machine 30 | . 30 . Lose Combat Pursuer 60 | . 60 . Influence Decreases 533 | 10 404 119 Entered New Map 58 | . . 58 Time Decay 364 | 10 344 10 Lost Part 111 | . 60 51 Squads Dispatched 4 | . 3 1 Investigation 2 | . 2 . Extermination . | . . . Reinforcement 2 | . 1 1 Assault . | . . . Garrison . | . . . Intercept . | . . . Searches Triggered . | . . . Construction Impeded . | . . . Haulers Reinforced . | . . . Active Scanning Responses . | . . . Cargo Convoy Interrupts . | . . . Stealth | -11 -10 -9 --------- Run | Yrd Mat Mat Distress Signals 3 | . 3 . Communications Jammed . | . . . Distress Signals . | . . . Times Spotted 33 | . 28 5 Peak Tracking Total 7 | . 7 6 Tactical Retreats 2 | . 2 . Traps | -11 -10 -9 ------- Run | Yrd Mat Mat Traps Triggered . | . . . Indirectly . | . . . Trap Hack Attempts . | . . . Triggered . | . . . Disarmed . | . . . Reprogrammed . | . . . Reused . | . . . Traps Extracted . | . . . Installed . | . . . Triggered . | . . . Machines | -11 -10 -9 ---------- Run | Yrd Mat Mat Machines Disabled 2 | . 2 . Max in Single Turn 1 | . 1 . Machines Repaired . | . . . Machines Dismantled . | . . . Machines Sabotaged . | . . . Overloaded Fab Kills . | . . . Hacking | -11 -10 -9 --------- Run | Yrd Mat Mat Machines Accessed 5 | . 5 . Terminals 5 | . 5 . Fabricators . | . . . Repair Stations . | . . . Recycling Units . | . . . Scanalyzers . | . . . Garrison Access . | . . . Total Hacks 14 | . 14 . Successful 5 | . 5 . Failed 9 | . 9 . Catastrophic 1 | . 1 . Database Lockouts . | . . . Manual 8 | . 8 . Terminals 14 | . 14 . Fabricators . | . . . Repair Stations . | . . . Recycling Units . | . . . Scanalyzers . | . . . Garrison Access . | . . . Terminal Hacks 1 | . 1 . Registered Components 1 | . 1 . Fabricator Hacks . | . . . Repair Station Hacks . | . . . Recycling Unit Hacks . | . . . Scanalyzer . | . . . Garrison Access Hacks . | . . . Unauthorized Hacks 4 | . 4 . Terminals 4 | . 4 . Botnet 4 | . 4 . Fabricators . | . . . Repair Stations . | . . . Recycling Units . | . . . Scanalyzers . | . . . Garrison Access . | . . . Data Cores Recovered . | . . . Used . | . . . Hacking Detections 4 | . 4 . Full Trace Events 3 | . 3 . Feedback Events . | . . . Feedback Blocked . | . . . Robot Schematics Acquired . | . . . Robots Built . | . . . Authchips . | . . . Time . | . . . Total Robot Build Rating . | . . . Part Schematics Acquired . | . . . Parts Built . | . . . Authchips . | . . . Time . | . . . Total Part Build Rating . | . . . Part Studies Acquired . | . . . Parts Repaired . | . . . Time . | . . . Parts Recycled . | . . . Recycled Matter . | . . . Retrieved Matter . | . . . Retrieved Components . | . . . Parts Scanalyzed . | . . . Part Schematics Acquired . | . . . Parts Damaged . | . . . Bothacking | -11 -10 -9 ------------ Run | Yrd Mat Mat Used RIF Installer . | . . . Robots Hacked . | . . . Non-combat . | . . . Combat . | . . . Robot Hacks Applied . | . . . Relay Couplers Released . | . . . Fabnet Peak Effective % . | . . . Robots Rewired . | . . . Allies Hacked . | . . . Hacks Repelled . | . . . Allies | -11 -10 -9 -------- Run | Yrd Mat Mat Total Allies . | . . . Largest Group . | . . . Highest-Rated Group . | . . . Highest-Rated Ally . | . . . Total Orders . | . . . Ally Attacks . | . . . Total Damage . | . . . Kills . | . . . Allies Corrupted . | . . . Allies Melted . | . . . Intel | -11 -10 -9 ------- Run | Yrd Mat Mat Active Infowar (turns) 516 | 45 434 37 Terrain 516 | 45 434 37 Robot Analysis Total . | . . . Derelict Logs Recovered . | . . . Drone Launches . | . . . Drone Recoveries . | . . . Exploration | -11 -10 -9 ------------- Run | Yrd Mat Mat Turns Passed 1041 | 112 877 52 Spaces Moved 559 | 54 488 17 Core 18 | 13 . 5 Treads 127 | . 127 . Legs 239 | 41 198 . Wheels . | . . . Hover 175 | . 163 12 Flight . | . . . Fastest Speed 50 | 50 116 116 Average Speed 132 | 135 130 166 Slowest Speed 320 | 250 320 250 Overloaded Moves . | . . . Propulsion Burnouts . | . . . Robots Hopped . | . . . Potential Cave-ins . | . . . Cave-ins Triggered . | . . . Exploration Rate (%) 29 | 4 79 4 Regions Visited 2 Branch Regions . Pre-discovered Areas . | . . . Known Exits Taken . | . . . Unknown Exits Taken 2 | 1 1 . Scrap Searched . | . . . Spaces Dug . | . . . Terrain Destroyed . | . . . Melee . | . . . Projectile . | . . . AOE . | . . . Terrain Rammed . | . . . Walls Destroyed . | . . . Machines Disabled . | . . . Actions | -11 -10 -9 --------- Run | Yrd Mat Mat Total 722 | 78 614 30 Wait 19 | 4 15 . Move 557 | 53 487 17 Hop . | . . . Pick Up 22 | 8 14 . Fast Attach 9 | 7 2 . Attach 7 | . 4 3 Detach . | . . . Swap 13 | . 13 . Drop 14 | . 14 . Fire 42 | 6 28 8 Melee 39 | . 37 2 Ram . | . . . Kick . | . . . Crush . | . . . Escape Stasis . | . . . Rewire . | . . . Trap . | . . . Miscellaneous . | . . . Route ------- -11/Scrapyard -10/Materials (discovered 2 exits: [*Mat] / [*Min]) -9/Materials (discovered 1 exit: [*Min]) History --------- Turn | Location | Event 22 | -11/Scrapyard | Discovered new exit (range 16) 113 | -11/Scrapyard | Entered Materials 305 | -10/Materials | Build established: Mutant 402 | -10/Materials | Discovered new exit (range 7) 867 | -10/Materials | Discovered new exit (range 15) 914 | -10/Materials | Core integrity fell below 50% 990 | -10/Materials | Entered another Materials area 990 | -9/Materials | Evolved 2 slots: Propulsion x1, Utility x1 997 | -9/Materials | Discovered new exit (range 15) 1022 | -9/Materials | Core integrity fell below 50% 1040 | -9/Materials | Core integrity fell below 20% 1042 | -9/Materials | Destroyed by Y-45 Defender with Heavy Assault Rifle Last Messages --------------- 00997_ EXIT=FOUND 01001_ Hover Unit destroyed. 01004_ Lgt. Nuclear Core destroyed. 01005_ ALERT: Hostiles spotted, dispatching reinforcements to Terminal M006. 01006_ Hover Unit destroyed. 01007_ Critical hit (Burn: +37). 01021_ Knocked back. 01022_ T-07 Excavator is excavating. 01024_ Hammer destroyed. 01027_ Imp. Terrain Scanner destroyed. 01031_ G-34 Mercenary destroyed. 01032_ Acquired 21 matter. 01033_ Lgt. Cannon destroyed. 01033_ Critical hit (Burn: +37). 01034_ Acquired 10 matter. 01035_ Acquired 3 matter. 01039_ Assault Rifle destroyed. 01039_ System corrupted by crushing effect (+1). 01041_ Acquired 1 matter. Map ----- +----------------------------------------------------+ | | | | | | | | | | | | | | | | | | | | | | | | | | | | | ????????????????????####?#?#??????#??????????????? | | ????????????#??????? #????????????????????? | | ????????????????????? """ ##???????????????????? | | ????????????????????? """ #????????????????????? | | ?????????????????????? """ #????????????????????? | | ?????????????????????? ##???????????????????? | | ???????????????#??????? !![ ??????#?????????????? | | ?????????????#????????? ![[#??#?????#???????????? | | ????????????????????? ?? ![[#????????????????????? | | ????????????????????? ??== #??####??????????????? | | ???????##################g### ### #??????????? | | ???????# b@Y ????????? | | ???????# Y < ????????? | | ???????# r ????????? | | ???????###################### ????????? | | ??????????????????????????????#### ?????????? | | ???????????????????????????????????? ?????????? | | ?????????????????????????????????????? ??????????? | | ???????????????#?????????????????????????????????? | | ???????????????????????????????? ????????????????? | | ????#?#???????#??????????????????????????????????? | | ?????????#???????????????????????????????????????? | | ??????????????????#??????????? ?? ???????????????? | | ???????????????????#?????????????????????????????? | | ?????????????????????????????????????????????????? | | ?????????????????????????????????????????????????? | | ?????????????? ????#?#???????????????????????????? | | ?????????????????????????????????????????????????? | | ?????????????????????????????????????????????????? | | ?????????????????????????????????????????????????? | | ?????????????????????????????????????????????????? | | ?????????????????????????????????????????????????? | | ?????????????????????????????????????????????????? | | ?????????????????????????????????????????????????? | | ?????????????????????????????????????????????????? | | ?????????????????????????????????????????????????? | +----------------------------------------------------+ Best States ------------- Heat Dissipation 35 Energy Generation 14 Energy Capacity 250 Matter Stores 300 Matter Capacity 300 Sight Range 16 Terrain Scan Range 16 Terrain Scan Density 10 Evasion (%) 55 Recoil Reduction 2 Item Schematics ----------------- None Robot Schematics ------------------ None Fabricated ------------ Nothing Repaired ---------- Nothing Studied --------- None Alien Tech Used ----------------- None Achievements -------------- None Challenges ------------ None Game ------ Seed SurveybotLinkedDetector Manual? 0 Play Time 00:09:07 Cumulative 66.1 hours Start 2025.10.31 @ 19:15:38 End 2025.10.31 @ 19:24:18 Sessions 1 Manual Loads 0 Difficulty Rogue Special Mode None Game No. 69 Rogue 69 Adventurer 0 Explorer 0 Win Type - Total 0 Types 0/0/0/0/0/0/0/0/0/0 Lore% 30 Gallery% 42 Achievement% 30 Wizard Run 0 Options --------- Layout 1 ASCII 0 Keyboard 1 Movement Numpad Keybinds 0 Fullscreen 1 Font 24/Smallcaps Map View 50x35 Zoom Use 0% Tactical HUD 1 Map Filters NONE Filters NONE Steam 1 RUN: 93212834-e763-45d6-95a6-8f7bd765eb18